fUST/lending_fUST_20260530
["ID","MTS","AMOUNT","RATE_DAILY","PERIOD"]
[423394317,1780081848000,-210.704175,0.00014111,2]
[423394318,1780081848000,-210.704175,0.00014111,2]
[423394319,1780081848000,-500.0,0.00014111,2]
[423394322,1780081848000,-500.0,0.00014111,2]
[423394324,1780081848000,-500.0,0.00014111,2]
[423394326,1780081848000,-500.0,0.00014111,2]
[423394330,1780081848000,-500.0,0.00014111,2]
[423394325,1780081848000,-531.61,0.00014111,2]
[423394327,1780081848000,-500.0,0.00014111,2]
[423394371,1780081848000,-500.0,0.00014114,2]
[423394323,1780081848000,-500.0,0.00014111,2]
[423394337,1780081848000,-500.0,0.00014111,2]
[423394334,1780081848000,-1544.42,0.00014111,2]
[423394332,1780081848000,-500.0,0.00014111,2]
[423394328,1780081848000,-500.0,0.00014111,2]
[423394331,1780081848000,-500.0,0.00014111,2]
[423394336,1780081848000,-500.0,0.00014111,2]
[423394345,1780081848000,-516.59,0.00014111,2]
[423394339,1780081848000,-499.47667092,0.00014111,2]
[423394341,1780081848000,-500.0,0.00014111,2]
[423394348,1780081848000,-500.0,0.00014111,2]
[423394340,1780081848000,-500.0,0.00014111,2]
[423394343,1780081848000,-500.0,0.00014111,2]
[423394344,1780081848000,-500.0,0.00014111,2]
[423394338,1780081848000,-500.0,0.00014111,2]
[423394346,1780081848000,-853.8463,0.00014111,2]
[423394329,1780081848000,-500.0,0.00014111,2]
[423394376,1780081848000,-171.720023,0.00014114,2]
[423394380,1780081848000,-500.0,0.00014114,2]
[423394377,1780081848000,-171.720023,0.00014114,2]
[423394411,1780081848000,-500.0,0.00014148,2]
[423394414,1780081848000,-182.594848,0.00014148,2]
[423394413,1780081848000,-182.594848,0.00014148,2]
[423394416,1780081848000,-182.594848,0.00014148,2]
[423394410,1780081848000,-500.0,0.00014148,2]
[423394418,1780081848000,-500.0,0.00014148,2]
[423394412,1780081848000,-182.594848,0.00014148,2]
[423394417,1780081848000,-500.0,0.00014148,2]
[423394415,1780081848000,-500.0,0.00014148,2]
[423394421,1780081848000,-152.435332,0.00014148,2]
[423394420,1780081848000,-400.87263607,0.00014148,2]
[423394423,1780081848000,-500.0,0.00014148,2]
[423394382,1780081848000,-500.0,0.00014148,2]
[423394422,1780081848000,-500.0,0.00014148,2]
[423394424,1780081848000,-500.0,0.00014148,2]
[423394430,1780081848000,-500.0,0.00014148,2]
[423394428,1780081848000,-315.17416686,0.00014148,2]
[423394427,1780081848000,-358.8060726,0.00014148,2]
[423394429,1780081848000,-500.0,0.00014148,2]
[423394426,1780081848000,-500.0,0.00014148,2]
[423394425,1780081848000,-151.0,0.00014148,2]
[423394432,1780081848000,-500.0,0.00014148,2]
[423394436,1780081848000,-500.0,0.00014148,2]
[423394435,1780081848000,-500.0,0.00014148,2]
[423394434,1780081848000,-500.0,0.00014148,2]
[423394433,1780081848000,-500.0,0.00014148,2]
[423394437,1780081848000,-501.86852882,0.00014148,2]
[423394408,1780081848000,-500.0,0.00014148,2]
[423394419,1780081848000,-500.0,0.00014148,2]
[423394431,1780081848000,-500.0,0.00014148,2]
[423394405,1780081848000,-500.0,0.00014148,2]
[423394409,1780081848000,-500.0,0.00014148,2]
[423394378,1780081848000,-171.720023,0.00014114,2]
[423394381,1780081848000,-227.69097867,0.00014142,2]
[423394379,1780081848000,-171.720023,0.00014114,2]
[423394383,1780081848000,-500.0,0.00014148,2]
[423394386,1780081848000,-500.0,0.00014148,2]
[423394385,1780081848000,-500.0,0.00014148,2]
[423394384,1780081848000,-500.0,0.00014148,2]
[423394387,1780081848000,-500.0,0.00014148,2]
[423394389,1780081848000,-500.0,0.00014148,2]
[423394390,1780081848000,-500.0,0.00014148,2]
[423394391,1780081848000,-606.29500468,0.00014148,2]
[423394392,1780081848000,-500.0,0.00014148,2]
[423394388,1780081848000,-500.0,0.00014148,2]
[423394393,1780081848000,-500.0,0.00014148,2]
[423394394,1780081848000,-500.0,0.00014148,2]
[423394398,1780081848000,-169.856537,0.00014148,2]
[423394402,1780081848000,-500.0,0.00014148,2]
[423394401,1780081848000,-169.856537,0.00014148,2]
[423394400,1780081848000,-500.0,0.00014148,2]
[423394406,1780081848000,-500.0,0.00014148,2]
[423394404,1780081848000,-169.856537,0.00014148,2]
[423394407,1780081848000,-500.0,0.00014148,2]
[423394399,1780081848000,-500.0,0.00014148,2]
[423394396,1780081848000,-500.0,0.00014148,2]
[423394397,1780081848000,-500.0,0.00014148,2]
[423394395,1780081848000,-500.0,0.00014148,2]
[423394403,1780081848000,-169.856537,0.00014148,2]
[423394480,1780081849000,-171.720023,0.00014149,2]
[423394481,1780081849000,-178.40824396,0.000142,2]
[423394478,1780081849000,-171.720023,0.00014149,2]
[423394476,1780081849000,-203.829561,0.00014149,2]
[423394477,1780081849000,-171.720023,0.00014149,2]
[423394475,1780081849000,-151.0,0.00014149,2]
[423394468,1780081849000,-210.704175,0.00014148,2]
[423394473,1780081849000,-151.0,0.00014149,2]
[423394482,1780081849000,-432.52756868,0.000142,2]
[423394472,1780081849000,-500.0,0.00014149,2]
[423394479,1780081849000,-171.720023,0.00014149,2]
[423394483,1780081849000,-500.0,0.00014202,2]
[423394484,1780081849000,-171.25477602,0.00014277,2]
[423394497,1780081849000,-228.38,0.00014384,2]
[423394488,1780081849000,-500.0,0.00014384,2]
[423394487,1780081849000,-592.16,0.00014384,2]
[423394495,1780081849000,-500.0,0.00014384,2]
[423394492,1780081849000,-500.0,0.00014384,2]
[423394493,1780081849000,-500.0,0.00014384,2]
[423394494,1780081849000,-500.0,0.00014384,2]
[423394489,1780081849000,-500.0,0.00014384,2]
[423394490,1780081849000,-500.0,0.00014384,2]
[423394486,1780081849000,-390.932,0.00014292,2]
[423394496,1780081849000,-1069.08,0.00014384,2]
[423394491,1780081849000,-500.0,0.00014384,2]
[423394498,1780081849000,-677.0,0.00014384,2]
[423394508,1780081849000,-500.0,0.00014384,2]
[423394485,1780081849000,-164.39018754,0.00014277,2]
[423394467,1780081849000,-210.704175,0.00014148,2]
[423394509,1780081849000,-500.0,0.00014384,2]
[423394470,1780081849000,-500.0,0.00014149,2]
[423394441,1780081849000,-499.132536,0.00014148,2]
[423394439,1780081849000,-499.132536,0.00014148,2]
[423394438,1780081849000,-500.0,0.00014148,2]
[423394443,1780081849000,-685.690213,0.00014148,2]
[423394444,1780081849000,-685.690213,0.00014148,2]
[423394442,1780081849000,-499.132536,0.00014148,2]
[423394440,1780081849000,-499.132536,0.00014148,2]
[423394455,1780081849000,-382.849269,0.00014148,2]
[423394446,1780081849000,-685.690213,0.00014148,2]
[423394457,1780081849000,-316.687065,0.00014148,2]
[423394456,1780081849000,-204.045563,0.00014148,2]
[423394447,1780081849000,-151.0,0.00014148,2]
[423394445,1780081849000,-685.690213,0.00014148,2]
[423394448,1780081849000,-316.687065,0.00014148,2]
[423394452,1780081849000,-382.849269,0.00014148,2]
[423394451,1780081849000,-316.687065,0.00014148,2]
[423394449,1780081849000,-151.0,0.00014148,2]
[423394450,1780081849000,-204.045563,0.00014148,2]
[423394454,1780081849000,-316.687065,0.00014148,2]
[423394453,1780081849000,-204.045563,0.00014148,2]
[423394458,1780081849000,-382.849269,0.00014148,2]
[423394459,1780081849000,-204.045563,0.00014148,2]
[423394461,1780081849000,-151.0,0.00014148,2]
[423394460,1780081849000,-382.849269,0.00014148,2]
[423394463,1780081849000,-151.0,0.00014148,2]
[423394462,1780081849000,-151.0,0.00014148,2]
[423394465,1780081849000,-270.93245,0.00014148,2]
[423394469,1780081849000,-210.704175,0.00014148,2]
[423394466,1780081849000,-210.704175,0.00014148,2]
[423394464,1780081849000,-151.0,0.00014148,2]
[423394504,1780081849000,-500.0,0.00014384,2]
[423394471,1780081849000,-500.0,0.00014149,2]
[423394501,1780081849000,-500.0,0.00014384,2]
[423394542,1780081849000,-500.0,0.00014385,2]
[423394536,1780081849000,-500.0,0.00014385,2]
[423394537,1780081849000,-500.0,0.00014385,2]
[423394541,1780081849000,-500.0,0.00014385,2]
[423394547,1780081849000,-552.61995317,0.00014385,2]
[423394538,1780081849000,-510.86,0.00014385,2]
[423394540,1780081849000,-949.66,0.00014385,2]
[423394546,1780081849000,-500.0,0.00014385,2]
[423394543,1780081849000,-500.0,0.00014385,2]
[423394548,1780081849000,-500.0,0.00014385,2]
[423394545,1780081849000,-531.61,0.00014385,2]
[423394544,1780081849000,-562.44544963,0.00014385,2]
[423394550,1780081849000,-500.0,0.00014385,2]
[423394560,1780081849000,-500.0,0.00014385,2]
[423394539,1780081849000,-500.0,0.00014385,2]
[423394561,1780081849000,-500.0,0.00014385,2]
[423394553,1780081849000,-500.0,0.00014385,2]
[423394554,1780081849000,-1544.42,0.00014385,2]
[423394552,1780081849000,-500.0,0.00014385,2]
[423394551,1780081849000,-500.0,0.00014385,2]
[423394559,1780081849000,-500.0,0.00014385,2]
[423394556,1780081849000,-500.0,0.00014385,2]
[423394555,1780081849000,-500.0,0.00014385,2]
[423394557,1780081849000,-500.0,0.00014385,2]
[423394558,1780081849000,-500.0,0.00014385,2]
[423394562,1780081849000,-500.0,0.00014385,2]
[423394565,1780081849000,-853.8463,0.00014385,2]
[423394564,1780081849000,-516.59,0.00014385,2]
[423394563,1780081849000,-500.0,0.00014385,2]
[423394507,1780081849000,-340.72,0.00014384,2]
[423394549,1780081849000,-500.0,0.00014385,2]
[423394535,1780081849000,-500.0,0.00014385,2]
[423394474,1780081849000,-151.0,0.00014149,2]
[423394530,1780081849000,-500.0,0.00014385,2]
[423394502,1780081849000,-12817.49,0.00014384,2]
[423394500,1780081849000,-500.0,0.00014384,2]
[423394499,1780081849000,-500.0,0.00014384,2]
[423394503,1780081849000,-500.0,0.00014384,2]
[423394505,1780081849000,-501.76,0.00014384,2]
[423394510,1780081849000,-500.0,0.00014384,2]
[423394512,1780081849000,-971.53,0.00014384,2]
[423394514,1780081849000,-296.2354861,0.00014385,2]
[423394511,1780081849000,-500.0,0.00014384,2]
[423394513,1780081849000,-726.13,0.00014384,2]
[423394521,1780081849000,-500.0,0.00014385,2]
[423394522,1780081849000,-500.0,0.00014385,2]
[423394515,1780081849000,-500.0,0.00014385,2]
[423394517,1780081849000,-500.0,0.00014385,2]
[423394506,1780081849000,-699.85,0.00014384,2]
[423394516,1780081849000,-500.0,0.00014385,2]
[423394520,1780081849000,-551.31,0.00014385,2]
[423394528,1780081849000,-500.0,0.00014385,2]
[423394526,1780081849000,-500.0,0.00014385,2]
[423394527,1780081849000,-500.0,0.00014385,2]
[423394525,1780081849000,-500.0,0.00014385,2]
[423394532,1780081849000,-500.0,0.00014385,2]
[423394533,1780081849000,-500.0,0.00014385,2]
[423394531,1780081849000,-500.0,0.00014385,2]
[423394534,1780081849000,-500.0,0.00014385,2]
[423394524,1780081849000,-500.0,0.00014385,2]
[423394523,1780081849000,-500.0,0.00014385,2]
[423394518,1780081849000,-500.0,0.00014385,2]
[423394529,1780081849000,-514.75,0.00014385,2]
[423394519,1780081849000,-500.0,0.00014385,2]
[423394602,1780081850000,-151.0,0.00014388,2]
[423394600,1780081850000,-382.849269,0.00014387,2]
[423394603,1780081850000,-602.53,0.00014388,2]
[423394610,1780081850000,-500.0,0.00014422,2]
[423394599,1780081850000,-204.045563,0.00014387,2]
[423394611,1780081850000,-500.0,0.00014422,2]
[423394592,1780081850000,-382.849269,0.00014387,2]
[423394596,1780081850000,-204.045563,0.00014387,2]
[423394608,1780081850000,-150.30811288,0.00014389,2]
[423394595,1780081850000,-382.849269,0.00014387,2]
[423394601,1780081850000,-151.0,0.00014387,2]
[423394604,1780081850000,-500.0,0.00014388,2]
[423394613,1780081850000,-500.0,0.00014422,2]
[423394606,1780081850000,-500.0,0.00014388,2]
[423394607,1780081850000,-500.0,0.00014388,2]
[423394612,1780081850000,-500.0,0.00014422,2]
[423394615,1780081850000,-500.0,0.00014422,2]
[423394616,1780081850000,-500.0,0.00014422,2]
[423394614,1780081850000,-500.0,0.00014422,2]
[423394617,1780081850000,-500.0,0.00014422,2]
[423394619,1780081850000,-500.0,0.00014422,2]
[423394621,1780081850000,-169.856537,0.00014422,2]
[423394620,1780081850000,-500.0,0.00014422,2]
[423394622,1780081850000,-500.0,0.00014422,2]
[423394589,1780081850000,-151.0,0.00014387,2]
[423394605,1780081850000,-500.0,0.00014388,2]
[423394593,1780081850000,-204.045563,0.00014387,2]
[423394576,1780081850000,-500.0,0.00014385,2]
[423394594,1780081850000,-316.687065,0.00014387,2]
[423394566,1780081850000,-500.0,0.00014385,2]
[423394573,1780081850000,-500.0,0.00014385,2]
[423394567,1780081850000,-500.0,0.00014385,2]
[423394568,1780081850000,-500.0,0.00014385,2]
[423394570,1780081850000,-509.36,0.00014385,2]
[423394571,1780081850000,-500.0,0.00014385,2]
[423394569,1780081850000,-500.0,0.00014385,2]
[423394572,1780081850000,-500.0,0.00014385,2]
[423394585,1780081850000,-685.690213,0.00014387,2]
[423394575,1780081850000,-600.1,0.00014385,2]
[423394577,1780081850000,-500.0,0.00014385,2]
[423394574,1780081850000,-500.0,0.00014385,2]
[423394587,1780081850000,-151.0,0.00014387,2]
[423394618,1780081850000,-500.0,0.00014422,2]
[423394584,1780081850000,-685.690213,0.00014387,2]
[423394580,1780081850000,-500.0,0.00014385,2]
[423394583,1780081850000,-685.690213,0.00014387,2]
[423394581,1780081850000,-500.0,0.00014385,2]
[423394579,1780081850000,-515.44004021,0.00014385,2]
[423394582,1780081850000,-500.0,0.00014387,2]
[423394586,1780081850000,-685.690213,0.00014387,2]
[423394588,1780081850000,-316.687065,0.00014387,2]
[423394591,1780081850000,-316.687065,0.00014387,2]
[423394598,1780081850000,-382.849269,0.00014387,2]
[423394597,1780081850000,-316.687065,0.00014387,2]
[423394590,1780081850000,-204.045563,0.00014387,2]
[423394578,1780081850000,-500.0,0.00014385,2]
[423394623,1780081850000,-500.0,0.00014422,2]
[423394609,1780081850000,-1041.246195,0.00014391,2]
[423394627,1780081850000,-169.856537,0.00014422,2]
[423394656,1780081850000,-171.720023,0.00014422,2]
[423394665,1780081850000,-210.704175,0.00014422,2]
[423394659,1780081850000,-499.132536,0.00014422,2]
[423394658,1780081850000,-499.132536,0.00014422,2]
[423394655,1780081850000,-171.720023,0.00014422,2]
[423394657,1780081850000,-171.720023,0.00014422,2]
[423394660,1780081850000,-499.132536,0.00014422,2]
[423394661,1780081850000,-499.132536,0.00014422,2]
[423394662,1780081850000,-151.0,0.00014422,2]
[423394663,1780081850000,-151.0,0.00014422,2]
[423394666,1780081850000,-210.704175,0.00014422,2]
[423394668,1780081850000,-210.704172,0.00014422,2]
[423394653,1780081850000,-151.0,0.00014422,2]
[423394671,1780081850000,-787.81237015,0.00014469,2]
[423394672,1780081850000,-190.53361492,0.00014559,2]
[423394676,1780081850000,-182.594848,0.00014563,2]
[423394674,1780081850000,-182.594848,0.00014563,2]
[423394675,1780081850000,-182.594848,0.00014563,2]
[423394673,1780081850000,-182.594848,0.00014563,2]
[423394677,1780081850000,-720.0,0.00014605,2]
[423394667,1780081850000,-210.704175,0.00014422,2]
[423394679,1780081850000,-500.0,0.00014658,2]
[423394681,1780081850000,-500.0,0.00014658,2]
[423394680,1780081850000,-500.0,0.00014658,2]
[423394678,1780081850000,-592.16,0.00014658,2]
[423394624,1780081850000,-169.856537,0.00014422,2]
[423394670,1780081850000,-151.0,0.00014423,2]
[423394664,1780081850000,-151.0,0.00014422,2]
[423394669,1780081850000,-500.0,0.00014423,2]
[423394649,1780081850000,-500.0,0.00014422,2]
[423394625,1780081850000,-500.0,0.00014422,2]
[423394654,1780081850000,-171.720023,0.00014422,2]
[423394626,1780081850000,-169.856537,0.00014422,2]
[423394638,1780081850000,-292.27867845,0.00014422,2]
[423394628,1780081850000,-500.0,0.00014422,2]
[423394639,1780081850000,-500.0,0.00014422,2]
[423394629,1780081850000,-501.6020872,0.00014422,2]
[423394630,1780081850000,-500.0,0.00014422,2]
[423394631,1780081850000,-486.89159194,0.00014422,2]
[423394635,1780081850000,-182.594848,0.00014422,2]
[423394636,1780081850000,-500.0,0.00014422,2]
[423394637,1780081850000,-182.594848,0.00014422,2]
[423394634,1780081850000,-182.594848,0.00014422,2]
[423394632,1780081850000,-500.0,0.00014422,2]
[423394633,1780081850000,-182.594848,0.00014422,2]
[423394650,1780081850000,-500.0,0.00014422,2]
[423394647,1780081850000,-500.0,0.00014422,2]
[423394646,1780081850000,-500.0,0.00014422,2]
[423394648,1780081850000,-500.0,0.00014422,2]
[423394652,1780081850000,-151.0,0.00014422,2]
[423394645,1780081850000,-500.0,0.00014422,2]
[423394651,1780081850000,-151.0,0.00014422,2]
[423394641,1780081850000,-500.0,0.00014422,2]
[423394643,1780081850000,-596.82880785,0.00014422,2]
[423394642,1780081850000,-500.0,0.00014422,2]
[423394640,1780081850000,-500.0,0.00014422,2]
[423394644,1780081850000,-500.0,0.00014422,2]
[423394716,1780081851000,-500.0,0.00014659,2]
[423394721,1780081851000,-510.86,0.00014659,2]
[423394722,1780081851000,-333.34,0.00014659,2]
[423394723,1780081851000,-949.66,0.00014659,2]
[423394724,1780081851000,-625.09,0.00014659,2]
[423394719,1780081851000,-501.8695967,0.00014659,2]
[423394713,1780081851000,-500.0,0.00014659,2]
[423394718,1780081851000,-500.0,0.00014659,2]
[423394728,1780081851000,-500.0,0.00014659,2]
[423394727,1780081851000,-531.61,0.00014659,2]
[423394717,1780081851000,-500.0,0.00014659,2]
[423394725,1780081851000,-500.0,0.00014659,2]
[423394720,1780081851000,-500.0,0.00014659,2]
[423394726,1780081851000,-623.91,0.00014659,2]
[423394740,1780081851000,-500.0,0.00014659,2]
[423394732,1780081851000,-304.06126574,0.00014659,2]
[423394733,1780081851000,-500.0,0.00014659,2]
[423394734,1780081851000,-1544.42,0.00014659,2]
[423394731,1780081851000,-500.0,0.00014659,2]
[423394737,1780081851000,-500.0,0.00014659,2]
[423394736,1780081851000,-500.0,0.00014659,2]
[423394735,1780081851000,-500.0,0.00014659,2]
[423394738,1780081851000,-639.88569246,0.00014659,2]
[423394739,1780081851000,-500.0,0.00014659,2]
[423394730,1780081851000,-500.0,0.00014659,2]
[423394741,1780081851000,-500.0,0.00014659,2]
[423394742,1780081851000,-500.0,0.00014659,2]
[423394711,1780081851000,-500.0,0.00014659,2]
[423394729,1780081851000,-500.0,0.00014659,2]
[423394709,1780081851000,-500.0,0.00014659,2]
[423394689,1780081851000,-500.0,0.00014658,2]
[423394706,1780081851000,-500.0,0.00014659,2]
[423394743,1780081851000,-624.81317788,0.00014659,2]
[423394690,1780081851000,-500.0,0.00014658,2]
[423394682,1780081851000,-500.0,0.00014658,2]
[423394683,1780081851000,-500.0,0.00014658,2]
[423394687,1780081851000,-1069.08,0.00014658,2]
[423394688,1780081851000,-677.0,0.00014658,2]
[423394685,1780081851000,-500.0,0.00014658,2]
[423394686,1780081851000,-500.0,0.00014658,2]
[423394684,1780081851000,-500.0,0.00014658,2]
[423394692,1780081851000,-12817.49,0.00014658,2]
[423394695,1780081851000,-501.76,0.00014658,2]
[423394702,1780081851000,-726.13,0.00014658,2]
[423394694,1780081851000,-500.0,0.00014658,2]
[423394691,1780081851000,-500.0,0.00014658,2]
[423394693,1780081851000,-500.0,0.00014658,2]
[423394699,1780081851000,-500.0,0.00014658,2]
[423394696,1780081851000,-699.85,0.00014658,2]
[423394698,1780081851000,-500.0,0.00014658,2]
[423394697,1780081851000,-500.0,0.00014658,2]
[423394701,1780081851000,-971.53,0.00014658,2]
[423394700,1780081851000,-500.0,0.00014658,2]
[423394714,1780081851000,-306.54,0.00014659,2]
[423394704,1780081851000,-622.17,0.00014659,2]
[423394715,1780081851000,-500.0,0.00014659,2]
[423394705,1780081851000,-500.0,0.00014659,2]
[423394710,1780081851000,-500.0,0.00014659,2]
[423394708,1780081851000,-551.31,0.00014659,2]
[423394712,1780081851000,-351.52,0.00014659,2]
[423394703,1780081851000,-392.26,0.00014659,2]
[423394707,1780081851000,-500.0,0.00014659,2]
[423394745,1780081851000,-853.8463,0.00014659,2]
[423394789,1780081851000,-382.84927,0.00014662,2]
[423394753,1780081851000,-500.0,0.00014659,2]
[423394780,1780081851000,-316.687065,0.00014662,2]
[423394782,1780081851000,-204.045563,0.00014662,2]
[423394792,1780081851000,-500.0,0.00014696,2]
[423394793,1780081851000,-500.0,0.00014696,2]
[423394781,1780081851000,-382.849269,0.00014662,2]
[423394783,1780081851000,-316.687065,0.00014662,2]
[423394786,1780081851000,-316.687065,0.00014662,2]
[423394784,1780081851000,-382.849269,0.00014662,2]
[423394787,1780081851000,-382.849269,0.00014662,2]
[423394790,1780081851000,-151.0,0.00014662,2]
[423394791,1780081851000,-625.05602469,0.00014696,2]
[423394788,1780081851000,-204.045568,0.00014662,2]
[423394785,1780081851000,-204.045563,0.00014662,2]
[423394794,1780081851000,-500.0,0.00014696,2]
[423394796,1780081851000,-500.0,0.00014696,2]
[423394797,1780081851000,-500.0,0.00014696,2]
[423394799,1780081851000,-500.0,0.00014696,2]
[423394798,1780081851000,-500.0,0.00014696,2]
[423394795,1780081851000,-500.0,0.00014696,2]
[423394800,1780081851000,-500.0,0.00014696,2]
[423394806,1780081851000,-500.0,0.00014696,2]
[423394805,1780081851000,-500.0,0.00014696,2]
[423394804,1780081851000,-500.0,0.00014696,2]
[423394803,1780081851000,-500.0,0.00014696,2]
[423394802,1780081851000,-500.0,0.00014696,2]
[423394751,1780081851000,-500.0,0.00014659,2]
[423394808,1780081851000,-500.0,0.00014696,2]
[423394809,1780081851000,-500.0,0.00014696,2]
[423394807,1780081851000,-151.0,0.00014696,2]
[423394778,1780081851000,-151.0,0.00014662,2]
[423394777,1780081851000,-316.687065,0.00014662,2]
[423394801,1780081851000,-500.0,0.00014696,2]
[423394774,1780081851000,-685.690213,0.00014662,2]
[423394769,1780081851000,-499.132536,0.00014662,2]
[423394744,1780081851000,-516.59,0.00014659,2]
[423394747,1780081851000,-500.0,0.00014659,2]
[423394746,1780081851000,-500.0,0.00014659,2]
[423394748,1780081851000,-383.08414733,0.00014659,2]
[423394749,1780081851000,-500.0,0.00014659,2]
[423394750,1780081851000,-509.36,0.00014659,2]
[423394765,1780081851000,-413.59,0.00014662,2]
[423394755,1780081851000,-600.1,0.00014659,2]
[423394756,1780081851000,-500.0,0.00014659,2]
[423394754,1780081851000,-500.0,0.00014659,2]
[423394757,1780081851000,-500.0,0.00014659,2]
[423394759,1780081851000,-169.856537,0.00014662,2]
[423394766,1780081851000,-500.0,0.00014662,2]
[423394767,1780081851000,-476.38,0.00014662,2]
[423394752,1780081851000,-500.0,0.00014659,2]
[423394758,1780081851000,-500.0,0.00014659,2]
[423394763,1780081851000,-602.53,0.00014662,2]
[423394779,1780081851000,-204.045563,0.00014662,2]
[423394775,1780081851000,-685.690219,0.00014662,2]
[423394772,1780081851000,-685.690213,0.00014662,2]
[423394771,1780081851000,-499.132541,0.00014662,2]
[423394773,1780081851000,-685.690213,0.00014662,2]
[423394776,1780081851000,-151.0,0.00014662,2]
[423394768,1780081851000,-499.132536,0.00014662,2]
[423394764,1780081851000,-500.0,0.00014662,2]
[423394762,1780081851000,-169.856537,0.00014662,2]
[423394761,1780081851000,-169.856537,0.00014662,2]
[423394760,1780081851000,-169.856537,0.00014662,2]
[423394770,1780081851000,-499.132536,0.00014662,2]
[423394861,1780081852000,-501.76,0.00014932,2]
[423394851,1780081852000,-500.0,0.00014932,2]
[423394846,1780081852000,-500.0,0.00014932,2]
[423394844,1780081852000,-592.16,0.00014932,2]
[423394842,1780081852000,-794.0,0.000149,2]
[423394845,1780081852000,-500.0,0.00014932,2]
[423394839,1780081852000,-169.856533,0.00014837,2]
[423394848,1780081852000,-500.0,0.00014932,2]
[423394863,1780081852000,-500.0,0.00014932,2]
[423394847,1780081852000,-500.0,0.00014932,2]
[423394843,1780081852000,-4532.71810509,0.0001493,2]
[423394849,1780081852000,-500.0,0.00014932,2]
[423394854,1780081852000,-677.0,0.00014932,2]
[423394862,1780081852000,-699.85,0.00014932,2]
[423394855,1780081852000,-500.0,0.00014932,2]
[423394852,1780081852000,-500.0,0.00014932,2]
[423394853,1780081852000,-1069.08,0.00014932,2]
[423394859,1780081852000,-500.0,0.00014932,2]
[423394856,1780081852000,-500.0,0.00014932,2]
[423394860,1780081852000,-500.0,0.00014932,2]
[423394857,1780081852000,-500.0,0.00014932,2]
[423394858,1780081852000,-12817.49,0.00014932,2]
[423394866,1780081852000,-500.0,0.00014932,2]
[423394865,1780081852000,-500.0,0.00014932,2]
[423394841,1780081852000,-170.592945,0.00014847,2]
[423394870,1780081852000,-500.0,0.00014933,2]
[423394850,1780081852000,-500.0,0.00014932,2]
[423394840,1780081852000,-269.170812,0.00014847,2]
[423394823,1780081852000,-182.594848,0.00014697,2]
[423394836,1780081852000,-169.856537,0.00014837,2]
[423394864,1780081852000,-500.0,0.00014932,2]
[423394810,1780081852000,-500.0,0.00014696,2]
[423394815,1780081852000,-151.0,0.00014696,2]
[423394811,1780081852000,-500.05,0.00014696,2]
[423394812,1780081852000,-500.0,0.00014696,2]
[423394813,1780081852000,-500.0,0.00014696,2]
[423394814,1780081852000,-500.0,0.00014696,2]
[423394817,1780081852000,-151.0,0.00014696,2]
[423394816,1780081852000,-151.0,0.00014696,2]